bitfinex-derivatives/quotes_ETHF0:USTF0_20250212
["timestamp","ask_amount","ask_price","bid_price","bid_amount"]
[1739375604974,0.76608,2610.8,2610.6,0.76612]
[1739375605175,0.5603,2611.0,2610.4,4.3806]
[1739375605374,0.5603,2611.0,2610.7,0.7661]
[1739375605575,0.5603,2611.0,2610.4,4.3806]
[1739375605778,0.76608,2610.9,2610.6,0.76613]
[1739375605975,0.76612,2610.7,2610.5,0.76616]
[1739375606174,0.5603,2611.0,2610.4,4.3806]
[1739375606378,0.7661,2610.8,2610.5,0.76617]
[1739375606574,0.5603,2611.0,2610.5,0.76615]
[1739375606879,0.76617,2610.5,2610.4,3.2078]
[1739375607976,0.7662,2610.4,2610.3,0.00574702]
[1739375609676,3.2078,2610.6,2610.3,0.00574702]
[1739375609879,3.2078,2610.6,2610.3,0.77195702]
[1739375609880,0.76618,2610.5,2610.3,0.77195702]
[1739375610379,3.2078,2610.6,2610.3,0.00574702]
[1739375610380,0.7662,2610.4,2610.3,0.00574702]
[1739375610981,3.2078,2610.6,2610.3,0.00574702]
[1739375611184,0.7661,2610.8,2610.6,0.76612]
[1739375611885,3.2078,2610.9,2610.5,4.03021017]
[1739375612081,3.2078,2610.9,2610.8,0.76608]
[1739375612384,3.97386,2610.9,2610.7,0.7661]
[1739375612580,3.97386,2610.9,2610.6,0.558]
[1739375612581,3.2078,2610.9,2610.6,0.558]
[1739375612779,0.76597,2611.2,2611.0,0.76601]
[1739375612980,4.3928,2611.3,2610.7,0.6093]
[1739375613179,0.76601,2611.1,2610.9,0.76605]
[1739375613379,0.76601,2611.1,2610.7,0.6093]
[1739375613582,4.3928,2611.3,2610.7,2.6143]
[1739375613786,0.76601,2611.1,2610.7,2.6143]
[1739375614085,0.00574702,2611.5,2611.0,3.2078]
[1739375614386,0.00574702,2611.5,2611.1,4.03021017]
[1739375614684,0.00574702,2611.5,2611.2,2.005]
[1739375614879,0.00574702,2611.5,2611.3,0.5688]
[1739375615181,0.00574702,2611.5,2611.4,0.76591]
[1739375615484,0.00574702,2611.5,2611.4,4.79612017]
[1739375615879,0.00574702,2611.5,2611.3,2.005]
[1739375616281,0.77163702,2611.5,2611.3,2.005]
[1739375616474,0.76591,2611.4,2611.3,2.005]
[1739375616682,0.00574702,2611.5,2611.3,2.005]
[1739375617478,0.00574702,2611.5,2611.3,2.19189529]
[1739375617691,0.00574702,2611.5,2611.3,2.95781529]
[1739375617987,0.00574702,2611.5,2611.3,2.19189529]
[1739375618182,0.00574702,2611.5,2611.3,2.95782529]
[1739375618381,0.00574702,2611.5,2611.4,0.76591]
[1739375618587,0.00574702,2611.5,2611.4,9.67498364]
[1739375620181,0.00574702,2611.5,2611.4,12.88278364]
[1739375621984,0.00574702,2611.5,2611.4,3.97371]
[1739375622178,0.00574702,2611.5,2611.4,5.97771]
[1739375622389,0.77162702,2611.5,2611.4,2.004]
[1739375623489,0.00574702,2611.5,2611.4,2.004]
[1739375623689,0.77162702,2611.5,2611.4,2.004]
[1739375623889,0.00574702,2611.5,2611.4,2.76991]
[1739375624288,0.77162702,2611.5,2611.4,2.004]
[1739375624581,0.00574702,2611.5,2611.3,0.18689529]
[1739375624788,0.76591,2611.4,2611.3,0.18689529]
[1739375625376,0.00574702,2611.5,2611.3,0.18689529]
[1739375625582,0.00574702,2611.5,2611.4,0.76591]
[1739375626184,0.00574702,2611.5,2611.3,0.18689529]
[1739375626378,0.00574702,2611.5,2611.4,0.76591]
[1739375628388,0.76566,2612.3,2612.1,0.76569]
[1739375629190,3.2078,2612.4,2611.8,3.7871]
[1739375629392,0.76568,2612.2,2612.0,0.76572]
[1739375629592,0.7657,2612.2,2611.9,0.76574]
[1739375629884,3.21354702,2612.4,2611.9,0.76574]
[1739375630089,0.76571,2612.1,2611.9,0.76574]
[1739375630293,3.21354702,2612.4,2611.8,3.79284702]
[1739375630589,0.76574,2612.0,2611.8,4.55861702]
[1739375630786,0.76575,2612.0,2611.8,3.79284702]
[1739375630985,0.76575,2612.0,2611.8,4.55862702]
[1739375631186,3.21354702,2612.4,2611.8,3.79284702]
[1739375631384,3.21354702,2612.4,2611.9,0.76574]
[1739375631590,0.76566,2612.3,2612.1,0.76569]
[1739375631990,0.76573,2612.1,2611.9,0.76575]
[1739375632188,3.21354702,2612.4,2611.8,3.79284702]
[1739375632394,0.76568,2612.2,2612.0,0.76571]
[1739375632693,0.76568,2612.2,2612.1,0.604]
[1739375632888,3.21354702,2612.4,2612.1,0.604]
[1739375632889,0.00574702,2612.4,2612.1,0.604]
[1739375633089,0.00574702,2612.4,2612.3,0.76564]
[1739375633290,0.00574702,2612.4,2612.1,3.8118]
[1739375633490,1.98355,2613.0,2612.4,1.914]
[1739375633689,4.4259,2613.0,2612.6,0.76554]
[1739375633891,4.4259,2613.0,2612.5,0.6064]
[1739375634197,0.76555,2612.6,2612.5,0.6064]
[1739375634394,4.4259,2613.0,2612.5,0.6064]
[1739375634589,3.2078,2612.6,2612.2,2.002]
[1739375634791,0.76561,2612.5,2612.3,0.76563]
[1739375634996,0.76562,2612.4,2612.2,2.76765]
[1739375635403,3.2078,2612.6,2612.2,2.002]
[1739375635891,0.76562,2612.4,2612.2,2.76764]
[1739375636198,3.2078,2612.6,2612.2,2.002]
[1739375636399,0.76561,2612.4,2612.3,0.76564]
[1739375636900,0.76562,2612.4,2612.2,2.76765]
[1739375637093,3.2078,2612.6,2612.1,0.604]
[1739375637291,0.76576,2611.9,2611.8,0.00574702]
[1739375637492,3.97356,2611.9,2611.8,0.00574702]
[1739375638201,0.76591,2611.4,2611.3,0.18689529]
[1739375638600,0.76589,2611.5,2611.3,0.18689529]
[1739375639503,0.76586,2611.6,2611.3,0.95281529]
[1739375639801,0.76588,2611.5,2611.3,0.18689529]
[1739375639995,3.2078,2611.5,2611.3,0.18689529]
[1739375640299,0.76595,2611.3,2611.1,0.60444702]
[1739375640503,3.2078,2611.5,2611.1,0.60444702]
[1739375641003,3.2078,2612.0,2611.1,0.60444702]
[1739375641297,0.76593,2611.4,2611.1,1.37043702]
[1739375641491,3.2078,2611.7,2611.3,3.2078]
[1739375641800,0.76586,2611.6,2611.3,3.97372]
[1739375642195,0.00574702,2611.7,2611.3,9.23901017]
[1739375642497,0.7657,2612.1,2611.8,0.76577]
[1739375642700,0.76573,2612.0,2611.9,0.6086]
[1739375642998,3.2078,2612.3,2611.6,3.2078]
[1739375643190,0.76581,2611.8,2611.5,4.58226]
[1739375643390,1.91419,2612.2,2611.5,3.8164]
[1739375643597,8.54420738,2626.0,2611.1,0.20165533]
[1739375643598,1.91445,2611.9,2611.2,3.2078]
[1739375643800,0.76594,2611.3,2611.2,3.2078]
[1739375643994,0.76592,2611.4,2611.2,3.2078]
[1739375644195,0.76589,2611.5,2611.3,0.76593]
[1739375644398,0.76591,2611.4,2611.2,3.97376]
[1739375644607,0.76594,2611.3,2611.2,3.2078]
[1739375645200,1.91455,2611.7,2611.2,3.2078]
[1739375645703,0.76594,2611.3,2611.2,3.2078]
[1739375646300,3.2078,2612.0,2611.2,3.2078]
[1739375646493,0.76587,2611.6,2611.3,0.76592]
[1739375646692,3.2078,2612.0,2611.3,0.76592]
[1739375647006,0.7659,2611.5,2611.2,3.2078]
[1739375647303,3.2078,2612.0,2611.2,3.2078]
[1739375647503,0.76594,2611.3,2611.2,3.2078]
[1739375648500,5.12226,2611.9,2611.2,3.2078]
[1739375648700,0.7659,2611.5,2611.2,3.97375]
[1739375648901,3.2078,2611.9,2611.2,3.2078]
[1739375649309,0.76591,2611.4,2611.2,3.2078]
[1739375649709,0.76594,2611.3,2611.2,3.2078]
[1739375650010,1.91435,2612.0,2611.2,3.97375]
[1739375650309,4.211,2612.2,2611.2,3.97375]
[1739375650310,4.211,2612.2,2611.3,8.94427122]
[1739375650502,1.0032,2612.2,2611.6,3.2078]
[1739375650701,0.76579,2611.8,2611.7,0.5529]
[1739375652708,2.91744,2612.2,2611.7,0.5529]
[1739375652914,0.76579,2611.8,2611.7,0.5529]
[1739375653815,3.2078,2612.0,2611.3,2.0]
[1739375654017,3.2078,2612.0,2611.3,2.611]
[1739375654018,1.91441,2611.9,2611.3,2.611]
[1739375654216,0.76591,2611.4,2611.3,2.611]
[1739375654709,0.76591,2611.4,2611.3,3.37694]
[1739375654909,1.91441,2611.9,2611.3,2.611]
[1739375655208,0.76583,2611.7,2611.5,0.76585]
[1739375655412,5.12217,2612.0,2611.4,0.76591]
[1739375655718,0.76589,2611.5,2611.3,3.37692]
[1739375655904,0.76589,2611.5,2611.3,2.611]
[1739375656107,5.12217,2612.0,2611.3,2.611]
[1739375656303,0.76588,2611.5,2611.3,2.611]
[1739375656503,0.76588,2611.5,2611.3,3.37692]
[1739375656916,1.91449,2611.8,2611.3,3.37692]
[1739375656917,0.76591,2611.4,2611.3,2.611]
[1739375657210,0.76591,2611.4,2611.3,0.611]
[1739375657411,1.91449,2611.8,2611.3,0.611]
[1739375657808,0.76591,2611.4,2611.3,0.611]
[1739375659119,0.76596,2611.2,2611.1,0.20165533]
[1739375659417,0.76596,2611.2,2611.1,0.80635533]
[1739375662020,0.76596,2611.2,2611.1,0.00574702]
[1739375662215,0.76611,2610.7,2610.6,0.5842]
[1739375664721,0.76617,2610.5,2610.4,3.21354702]
[1739375664921,0.76617,2610.5,2610.4,0.00574702]
[1739375666218,3.2078,2610.6,2609.7,0.18858811]
[1739375666426,5.12349,2610.2,2609.5,5.2058]
[1739375666616,0.76643,2609.6,2609.5,5.2058]
[1739375666811,0.76643,2609.6,2609.5,3.2078]
[1739375667117,0.76655,2609.2,2609.1,0.05291521]
[1739375667317,0.76655,2609.2,2609.1,0.62421521]
[1739375667616,0.76655,2609.2,2609.1,0.5713]
[1739375667816,0.76661,2609.0,2608.9,2.00374702]
[1739375668212,0.76661,2609.0,2608.9,0.00574702]
[1739375668422,0.00574702,2609.4,2608.9,0.00574702]
[1739375668628,0.76656,2609.2,2609.0,3.2078]
[1739375669022,0.00574702,2609.4,2609.0,3.2078]
[1739375669023,0.76658,2609.1,2609.0,3.2078]
[1739375670021,0.76661,2609.0,2608.9,0.00574702]
[1739375675329,0.76659,2609.1,2608.9,0.00574702]
[1739375675524,0.00574702,2609.4,2609.0,3.2078]
[1739375676031,0.76656,2609.2,2609.0,8.35777643]
[1739375676221,0.76658,2609.1,2609.0,8.92397643]
[1739375676425,0.76658,2609.1,2609.0,5.772]
[1739375676625,0.76658,2609.1,2609.0,1.998]
[1739375676825,0.76661,2609.0,2608.9,0.00574702]
[1739375678636,0.76655,2609.2,2608.9,0.00574702]
[1739375678835,0.76657,2609.2,2609.0,3.9744]
[1739375679039,0.00574702,2609.4,2609.0,11.3685233]
[1739375679225,0.00574702,2609.4,2609.3,7.12629643]
[1739375680134,0.76645,2609.6,2609.4,0.76648]
[1739375680334,5.12359,2610.1,2609.3,6.35977643]
[1739375680531,0.76641,2609.7,2609.5,0.76644]
[1739375680729,0.76641,2609.7,2609.3,6.35977643]
[1739375680730,1.91561,2610.3,2609.6,8.35777643]
[1739375680936,0.76618,2610.5,2610.2,3.97405]
[1739375681127,3.2078,2610.9,2610.2,3.2078]
[1739375681333,0.00574702,2610.6,2610.1,2.76428]
[1739375681531,0.76618,2610.5,2610.2,0.76626]
[1739375681732,0.76618,2610.5,2610.2,0.00574702]
[1739375681933,0.00574702,2610.6,2610.2,0.00574702]
[1739375682147,0.76617,2610.5,2610.2,0.00574702]
[1739375682548,0.76617,2610.5,2610.2,0.77198702]
[1739375682844,0.00574702,2610.6,2610.2,0.00574702]
[1739375683047,0.76621,2610.4,2610.2,0.00574702]
[1739375683249,0.76621,2610.4,2610.2,0.56794702]
[1739375683449,0.76619,2610.5,2610.2,4.54199702]
[1739375683752,0.00574702,2610.6,2610.3,0.19214402]
[1739375684048,0.7662,2610.4,2610.3,2.18914402]
[1739375684251,0.7662,2610.4,2610.3,0.19214402]
[1739375685239,3.21354702,2610.6,2610.3,0.19214402]
[1739375685441,0.00574702,2610.6,2610.5,0.76617]
[1739375685948,0.00574702,2610.6,2610.5,3.91814643]
[1739375686442,0.00574702,2610.6,2610.5,0.76617]
[1739375686643,0.76603,2611.0,2610.7,0.76609]
[1739375686843,0.76603,2611.0,2610.7,3.2078]
[1739375687043,0.76603,2611.0,2610.7,3.97389]
[1739375687642,0.76607,2610.9,2610.6,2.76313]
[1739375687840,3.7605,2611.3,2610.6,2.76313]
[1739375688047,5.67538,2611.3,2610.6,2.76313]
[1739375688254,0.76606,2610.9,2610.6,2.76312]
[1739375688454,5.67538,2611.3,2610.6,2.76312]
[1739375688655,0.76607,2610.9,2610.6,2.76312]
[1739375688945,0.76609,2610.8,2610.6,2.76314]
[1739375689457,3.7605,2611.3,2610.7,0.7661]
[1739375689653,0.76605,2610.9,2610.7,0.7661]
[1739375689953,0.76608,2610.9,2610.6,2.76313]
[1739375690356,3.7605,2611.3,2610.6,2.76312]
[1739375690558,0.76615,2610.6,2610.4,3.97399]
[1739375690754,0.76615,2610.6,2610.5,1.996]
[1739375690952,0.76615,2610.6,2610.4,3.97399]
[1739375691160,1.9151,2611.0,2610.4,5.2038]
[1739375691456,1.9151,2611.0,2610.4,3.2078]
[1739375691651,0.76616,2610.6,2610.4,3.2078]
[1739375692255,0.76616,2610.6,2610.4,3.97399]
[1739375692957,0.76617,2610.5,2610.4,3.2078]
[1739375694655,0.76617,2610.5,2610.4,3.974]
[1739375695354,0.76615,2610.6,2610.4,3.97398]
[1739375695558,3.2078,2611.0,2610.4,3.2078]
[1739375695753,0.76617,2610.5,2610.4,3.2078]
[1739375695954,0.76617,2610.5,2610.4,3.974]
[1739375696256,5.12292,2611.0,2610.4,3.974]
[1739375696452,1.91517,2610.9,2610.4,3.974]
[1739375696857,0.76616,2610.6,2610.4,3.974]
[1739375697259,0.76617,2610.5,2610.4,3.974]
[1739375697556,0.76617,2610.5,2610.4,3.2078]
[1739375697758,1.9153,2610.7,2610.2,3.71992345]
[1739375697759,3.2078,2610.7,2610.2,0.56794702]
[1739375698053,0.76606,2610.9,2610.6,3.15197643]
[1739375698248,1.91485,2611.3,2610.3,3.2078]
[1739375698249,1.91499,2611.1,2610.5,1.995]
[1739375698448,0.76612,2610.7,2610.5,1.995]
[1739375698649,1.91514,2610.9,2610.3,3.2078]
[1739375699155,0.76618,2610.5,2610.3,3.2078]
[1739375699355,0.76616,2610.6,2610.3,3.97403]
[1739375699556,0.76617,2610.5,2610.3,3.2078]
[1739375699758,1.91514,2610.9,2610.4,0.7662]
[1739375699960,3.2078,2611.0,2610.3,3.2078]
[1739375700652,4.19467643,2611.2,2610.2,5.90562917]
[1739375700653,0.76623,2610.3,2610.2,0.00574702]
[1739375704055,3.7646,2610.5,2610.2,0.00574702]
[1739375704262,0.76622,2610.4,2610.2,0.77198702]
[1739375704560,0.76612,2610.7,2610.6,0.76613]
[1739375704756,3.2078,2611.0,2610.3,3.2078]
[1739375704956,0.76614,2610.6,2610.5,0.76616]
[1739375705159,0.76616,2610.6,2610.4,0.76619]
[1739375705365,5.12294,2610.9,2610.2,3.15772345]
[1739375705666,5.12294,2610.9,2610.2,0.00574702]
[1739375705961,0.76618,2610.5,2610.2,3.15772345]
[1739375706163,3.2078,2610.9,2610.3,3.2078]
[1739375706662,0.76615,2610.6,2610.5,0.76617]
[1739375706850,3.2078,2610.9,2610.5,0.76616]
[1739375707254,3.2078,2610.9,2610.3,3.2078]
[1739375707453,1.91525,2610.8,2610.2,0.00574702]
[1739375707662,0.76623,2610.3,2610.2,0.00574702]
[1739375711264,0.76615,2610.6,2610.5,0.76615]
[1739375711558,0.76613,2610.7,2610.6,0.76613]
[1739375712069,0.76616,2610.6,2610.5,0.76616]
[1739375712259,3.2078,2610.9,2610.3,0.5873]
[1739375712462,0.76615,2610.6,2610.5,0.76616]
[1739375712864,0.76612,2610.7,2610.6,0.76613]
[1739375713058,5.12273,2611.2,2610.5,6.35977643]
[1739375713059,3.2078,2611.2,2610.5,6.35977643]
[1739375713266,0.76606,2610.9,2610.6,3.1651]
[1739375713561,0.76604,2611.0,2610.6,3.93123]
[1739375713764,0.76603,2611.0,2610.7,4.89762404]
[1739375714455,3.2078,2611.2,2610.7,4.89762404]
[1739375714655,0.76598,2611.2,2610.9,3.2078]
[1739375714958,3.2078,2611.5,2610.8,3.15197643]
[1739375715166,0.76597,2611.2,2610.9,3.7609]
[1739375715355,3.2078,2611.5,2610.9,3.7609]
[1739375715668,0.766,2611.1,2610.9,3.7609]
[1739375715964,0.766,2611.1,2610.6,3.93122]
[1739375715965,1.91507,2611.0,2610.2,0.00574702]
[1739375716172,0.76623,2610.3,2610.2,0.00574702]
[1739375716870,5.12297,2610.9,2610.2,6.36552345]
[1739375717162,0.76618,2610.5,2610.2,6.36552345]
[1739375717363,1.91514,2610.9,2610.2,6.36552345]
[1739375717561,1.91529,2610.7,2610.2,0.00574702]
[1739375717760,0.76623,2610.3,2610.2,0.00574702]
[1739375718669,3.15197643,2610.5,2609.4,3.2078]
[1739375718670,6.35977643,2610.5,2609.4,3.2078]
[1739375718969,0.76646,2609.5,2609.4,3.2078]
[1739375719269,0.76652,2609.3,2609.2,0.5784]
[1739375719465,4.33697643,2609.5,2608.9,3.2078]
[1739375719659,0.76661,2609.0,2608.9,3.2078]
[1739375720468,3.2078,2609.3,2608.7,0.00574702]
[1739375720669,0.76667,2608.8,2608.7,0.00574702]
[1739375721971,0.76666,2608.9,2608.7,0.00574702]
[1739375722469,0.76667,2608.8,2608.7,0.56044702]
[1739375722666,0.76667,2608.8,2608.7,0.00574702]
[1739375723373,3.2078,2609.3,2608.7,0.00574702]
[1739375723672,0.76667,2608.9,2608.7,0.00574702]
[1739375723870,0.76667,2608.8,2608.7,0.00574702]
[1739375724075,3.2078,2609.3,2608.7,0.00574702]
[1739375724272,0.76667,2608.8,2608.7,0.00574702]
[1739375729081,0.76667,2608.8,2608.7,0.06390508]
[1739375729482,0.76667,2608.8,2608.7,0.12206314]
[1739375731982,3.2078,2609.0,2608.7,0.12206314]
[1739375732283,3.2078,2609.0,2608.7,0.88874314]
[1739375732284,0.76667,2608.9,2608.7,0.88874314]
[1739375732476,3.2078,2609.0,2608.7,0.00574702]
[1739375732681,0.00574702,2609.5,2609.0,0.7666]
[1739375732882,0.76655,2609.2,2609.1,0.5557]
[1739375733573,0.76655,2609.2,2609.1,0.67201612]
[1739375734281,0.76655,2609.2,2609.1,0.11631612]
[1739375734482,0.76655,2609.2,2608.7,0.77243702]
[1739375734483,7.24300601,2609.3,2608.7,0.56144702]
[1739375734680,3.97447,2608.8,2608.7,0.00574702]
[1739375735982,0.76667,2608.8,2608.7,0.77244702]
[1739375736183,0.76665,2608.9,2608.8,0.76665]
[1739375736487,0.76665,2608.9,2608.8,1.37395]
[1739375737379,3.2078,2609.1,2608.8,0.6073]
[1739375737580,0.76664,2608.9,2608.8,1.37396]
[1739375737984,0.76664,2608.9,2608.8,0.6073]
[1739375738296,0.76662,2609.0,2608.8,1.37396]
[1739375738481,3.2078,2609.1,2608.9,0.6034]
[1739375738684,3.2078,2609.4,2608.9,0.6034]
[1739375739082,0.7665,2609.4,2609.2,0.76654]
[1739375739282,0.76649,2609.4,2609.3,0.6101]
[1739375739681,0.00574702,2609.5,2609.3,0.6101]
[1739375739888,0.76642,2609.7,2609.4,1.35129]
[1739375740186,0.76639,2609.8,2609.5,2.75745]
[1739375740787,3.2078,2609.9,2609.5,1.991]
[1739375740984,3.2078,2609.9,2609.4,0.5848]
[1739375741288,1.91597,2609.8,2609.2,5.1988]
[1739375741487,0.76651,2609.4,2609.2,5.1988]
[1739375741988,0.76652,2609.3,2609.2,5.1988]
[1739375742191,0.76658,2609.1,2609.0,1.1932]
[1739375743188,0.76658,2609.1,2609.0,0.5886]
[1739375743987,0.76658,2609.1,2608.7,0.00574702]
[1739375743988,3.2078,2609.1,2608.7,0.00574702]
[1739375744183,0.76667,2608.8,2608.7,0.00574702]
[1739375744584,3.97447,2608.8,2608.7,0.00574702]
[1739375744890,0.76682,2608.3,2608.2,0.19513559]
[1739375745090,0.76682,2608.3,2608.1,1.1816]
[1739375745384,0.76685,2608.2,2608.1,1.1816]
[1739375746185,0.76683,2608.3,2608.1,1.94847]
[1739375746388,0.77255702,2608.4,2608.1,1.94847]
[1739375746587,0.76682,2608.3,2608.1,1.94847]
[1739375746784,0.76682,2608.3,2608.1,1.1816]
[1739375746989,0.00574702,2608.4,2608.1,1.1816]
[1739375747185,0.76685,2608.2,2608.1,1.1816]
[1739375747992,3.21354702,2608.4,2608.1,1.1816]
[1739375748188,3.98033702,2608.4,2608.2,0.76682]
[1739375748396,3.98033702,2608.4,2608.2,0.76683]
[1739375748694,3.98033702,2608.4,2608.1,1.1816]
[1739375749087,3.21354702,2608.4,2608.1,1.1816]
[1739375749890,0.76683,2608.3,2608.1,1.94847]
[1739375750092,3.21354702,2608.4,2608.1,1.1816]
[1739375750288,0.00574702,2608.4,2608.1,1.1816]
[1739375750498,0.77254702,2608.4,2608.1,1.94845]
[1739375750699,0.77254702,2608.4,2608.2,0.76683]
[1739375750992,0.00574702,2608.4,2608.1,1.1816]
[1739375751294,0.00574702,2608.4,2608.3,3.97462]
[1739375751493,3.2078,2609.2,2608.3,5.1978]
[1739375751695,3.2078,2609.5,2608.9,3.2078]
[1739375751895,3.2078,2609.5,2609.0,1.1715]
[1739375752397,3.2078,2609.5,2609.0,1.9381]
[1739375752398,0.76655,2609.2,2609.0,1.9381]
[1739375752592,3.2078,2609.5,2609.0,1.1715]
[1739375752795,0.76657,2609.2,2609.0,1.1715]
[1739375753097,0.76653,2609.3,2609.0,1.93808]
[1739375753308,3.2078,2609.5,2609.0,1.9381]
[1739375753494,0.76653,2609.3,2609.1,0.76658]
[1739375753698,0.76658,2609.1,2609.0,1.1715]
[1739375756302,0.76658,2609.1,2609.0,0.5778]
[1739375757101,0.7667,2608.7,2608.6,5.1968]
[1739375757304,0.7667,2608.7,2608.6,1.989]
[1739375757695,0.76673,2608.6,2608.5,0.5567]
[1739375758890,0.76673,2608.6,2608.5,1.32346]
[1739375759606,1.91654,2609.0,2608.5,1.32346]
[1739375759607,0.76671,2608.7,2608.6,0.76673]
[1739375760101,0.5713,2609.3,2608.6,3.2078]
[1739375760290,0.76665,2608.9,2608.6,3.2078]
[1739375760490,3.2078,2609.4,2608.6,3.2078]
[1739375760696,5.12379,2609.8,2609.0,3.2078]
[1739375760897,0.76649,2609.5,2609.3,0.76652]
[1739375761097,0.76649,2609.5,2609.4,0.5834]
[1739375761503,0.76645,2609.6,2609.4,1.34989]
[1739375761699,3.2078,2609.8,2609.4,0.5834]
[1739375761898,0.76646,2609.5,2609.4,0.5834]
[1739375762708,0.76655,2609.2,2609.1,0.00574702]
[1739375763999,1.91664,2608.9,2608.3,0.19388748]
[1739375764305,0.76679,2608.4,2608.3,0.19388748]
[1739375764512,0.76679,2608.4,2608.2,3.97464]
[1739375765106,0.76682,2608.3,2608.2,3.2078]
[1739375768612,0.76686,2608.2,2608.0,1.17804702]
[1739375768802,0.76688,2608.1,2608.0,1.17804702]
[1739375771707,0.76688,2608.1,2608.0,0.61124702]
[1739375771907,0.76688,2608.1,2608.0,0.00574702]
[1739375772415,0.76702,2607.6,2607.5,0.5949]
[1739375773104,0.76702,2607.6,2607.2,3.32842]
[1739375773105,0.76711,2607.3,2607.2,1.34144]
[1739375774109,3.8124,2607.7,2607.2,0.5743]
[1739375774309,0.76711,2607.3,2607.2,1.34143]
[1739375774504,0.76711,2607.4,2607.2,1.34142]
[1739375775008,3.2078,2607.7,2607.2,0.5743]
[1739375775213,0.76707,2607.5,2607.3,8.01009601]
[1739375775401,0.76707,2607.5,2607.3,3.97489]
[1739375775605,0.76707,2607.5,2607.4,0.76708]
[1739375775817,0.76707,2607.5,2607.3,3.9749]
[1739375776118,0.76706,2607.5,2607.3,3.2078]
[1739375776710,1.91737,2607.9,2607.3,3.2078]
[1739375777013,0.76703,2607.6,2607.3,3.2078]
[1739375777216,1.91737,2607.9,2607.3,3.2078]
[1739375777417,0.76704,2607.6,2607.4,0.76707]
[1739375777606,1.91737,2607.9,2607.3,3.2078]
[1739375777607,0.76708,2607.4,2607.3,3.2078]
[1739375779307,3.2078,2607.4,2607.0,3.21354702]
[1739375779509,0.76717,2607.1,2607.0,0.00574702]
[1739375781314,0.6043,2607.3,2607.0,3.21354702]
[1739375781508,5.95228601,2608.3,2607.9,0.76693]
[1739375781714,1.91701,2608.4,2607.8,0.76695]
[1739375782017,0.76686,2608.2,2608.0,0.76689]
[1739375782314,3.2078,2608.5,2608.1,0.6004]
[1739375782510,0.76685,2608.2,2608.1,0.6004]
[1739375783215,0.76685,2608.2,2608.0,0.5905]
[1739375783216,0.76693,2607.9,2607.8,1.987]
[1739375783721,0.76693,2607.9,2607.5,3.1779]
[1739375783722,3.2078,2607.9,2607.5,3.1779]
[1739375783923,3.6588,2608.2,2607.5,3.1779]
[1739375784117,1.9172,2608.1,2607.5,3.1779]
[1739375784315,0.76702,2607.6,2607.5,3.1779]
[1739375784914,3.2078,2607.9,2607.5,3.1779]
[1739375785117,0.767,2607.7,2607.6,0.76702]
[1739375785321,0.76696,2607.8,2607.6,0.76702]
[1739375785517,3.2078,2607.9,2607.5,3.1779]
[1739375785722,3.2078,2607.9,2607.8,0.76696]
[1739375786226,0.76686,2608.2,2608.0,0.76689]
[1739375786424,0.76686,2608.2,2608.1,1.1325]
[1739375786820,0.76683,2608.3,2608.1,1.1325]
[1739375787021,0.00574702,2608.6,2608.1,1.1325]
[1739375787231,0.00574702,2608.6,2608.1,1.89936]
[1739375787423,0.7668,2608.4,2608.2,0.76684]
[1739375787827,0.77249702,2608.6,2608.2,3.2078]
[1739375788023,0.77249702,2608.6,2608.4,0.76678]
[1739375788228,0.00574702,2608.6,2608.5,0.76676]
[1739375788425,0.00574702,2608.6,2608.5,3.97456]
[1739375788730,0.76657,2609.2,2608.9,0.76663]
[1739375788931,3.2078,2609.5,2608.8,3.2078]
[1739375789133,0.76659,2609.1,2608.8,3.97445]
[1739375789334,0.76659,2609.1,2608.8,3.2078]
[1739375789535,0.76657,2609.2,2608.9,0.76664]
[1739375789734,0.77231702,2609.2,2608.8,3.7599]
[1739375789935,0.77231702,2609.2,2608.9,0.76664]
[1739375790134,0.77231702,2609.2,2608.9,0.76662]
[1739375790441,0.00574702,2609.2,2609.1,0.76658]
[1739375790842,3.97427,2609.5,2609.2,0.76653]
[1739375791033,3.2078,2609.8,2609.2,3.2078]
[1739375791335,0.76645,2609.6,2609.3,0.76652]
[1739375791534,3.2078,2609.8,2609.2,3.2078]
[1739375792136,3.2078,2609.8,2609.1,0.76656]
[1739375792330,3.2078,2609.8,2609.0,6.02020601]
[1739375792530,0.76649,2609.5,2609.2,0.76654]
[1739375792732,0.7665,2609.4,2609.1,5.63527524]
[1739375792931,0.7665,2609.4,2609.1,0.76656]
[1739375793127,3.2078,2609.8,2609.0,1.985]
[1739375793337,0.76657,2609.2,2609.1,1.985]
[1739375793934,1.91609,2609.6,2608.9,5.1928]
[1739375794138,0.4627,2609.5,2608.9,5.1928]
[1739375794432,0.7666,2609.1,2608.9,5.1928]
[1739375794634,0.7666,2609.1,2608.9,5.95943]
[1739375795239,0.4627,2609.5,2608.9,5.1928]
[1739375795430,0.7666,2609.1,2608.9,5.1928]
[1739375795630,0.76657,2609.2,2609.0,0.76661]
[1739375795831,0.4627,2609.5,2608.9,5.95942]
[1739375796032,0.76657,2609.2,2609.0,0.76661]
[1739375796336,0.4627,2609.5,2608.9,5.95942]
[1739375796534,0.76664,2608.9,2608.8,1.133]
[1739375796835,0.76667,2608.8,2608.7,0.00574702]
[1739375801335,6.0,2608.8,2607.7,3.2078]
[1739375801535,0.76695,2607.9,2607.8,0.76695]
[1739375801731,3.2078,2608.1,2607.6,4.3699]
[1739375801937,0.76688,2608.1,2608.0,0.76689]
[1739375802642,0.00574702,2608.3,2608.1,0.76685]
[1739375803037,0.76692,2608.0,2607.9,0.76692]
[1739375803240,0.00574702,2608.3,2607.8,0.77268702]
[1739375803440,0.76693,2607.9,2607.8,0.00574702]
[1739375803645,3.97473,2607.9,2607.8,0.00574702]
[1739375807947,3.97473,2607.9,2606.8,3.2078]